fUST/lending_fUST_20250502
["ID","MTS","AMOUNT","RATE_DAILY","PERIOD"]
[359553595,1746115832013,-160.0,0.0002,3]
[359553597,1746115832024,-313.5469528,0.00022327,2]
[359553600,1746115832034,-173.34246465,0.00022783,5]
[359553603,1746115832044,-1315.13228344,0.00023182,2]
[359553605,1746115832053,-300.0,0.0002328,2]
[359553607,1746115832063,-160.0,0.0002328,2]
[359553609,1746115832072,-300.0,0.00023281,2]
[359553611,1746115832082,-300.0,0.00023281,2]
[359553613,1746115832091,-300.0,0.00023281,2]
[359553615,1746115832101,-300.0,0.00023281,2]
[359553617,1746115832110,-1200.0,0.00023281,2]
[359553620,1746115832119,-500.0,0.00023282,2]
[359553621,1746115832128,-500.0,0.00023282,2]
[359553623,1746115832138,-500.0,0.00023282,2]
[359553625,1746115832147,-500.0,0.00023282,2]
[359553627,1746115832156,-500.0,0.00023282,2]
[359553629,1746115832166,-500.0,0.00023282,2]
[359553631,1746115832175,-500.0,0.00023282,2]
[359553633,1746115832184,-500.0,0.00023282,2]
[359553635,1746115832194,-500.0,0.00023282,2]
[359553637,1746115832203,-500.0,0.00023282,2]
[359553638,1746115832212,-500.0,0.00023282,2]
[359553639,1746115832222,-500.0,0.00023282,2]
[359553640,1746115832231,-500.0,0.00023282,2]
[359553642,1746115832240,-500.0,0.00023282,2]
[359553644,1746115832249,-500.0,0.00023282,2]
[359553646,1746115832259,-500.0,0.00023282,2]
[359553647,1746115832269,-500.0,0.00023282,2]
[359553648,1746115832279,-500.0,0.00023282,2]
[359553649,1746115832288,-198.67300417,0.00023282,2]
[359553650,1746115832298,-500.0,0.00023282,2]
[359553651,1746115832307,-500.0,0.00023282,2]
[359553652,1746115832317,-500.0,0.00023282,2]
[359553653,1746115832327,-500.0,0.00023282,2]
[359553654,1746115832336,-500.0,0.00023282,2]
[359553655,1746115832345,-500.0,0.00023282,2]
[359553656,1746115832354,-500.0,0.00023282,2]
[359553657,1746115832364,-500.0,0.00023282,2]
[359553658,1746115832374,-500.0,0.00023282,2]
[359553659,1746115832383,-500.0,0.00023282,2]
[359553660,1746115832393,-500.0,0.00023282,2]
[359553661,1746115832403,-500.0,0.00023282,2]
[359553662,1746115832414,-500.0,0.00023282,2]
[359553663,1746115832424,-500.0,0.00023282,2]
[359553664,1746115832433,-500.0,0.00023282,2]
[359553665,1746115832442,-500.0,0.00023282,2]
[359553666,1746115832452,-500.0,0.00023282,2]
[359553667,1746115832462,-500.0,0.00023282,2]
[359553668,1746115832472,-500.0,0.00023282,2]
[359553669,1746115832481,-500.0,0.00023282,2]
[359553670,1746115832491,-500.0,0.00023282,2]
[359553671,1746115832500,-500.0,0.00023282,2]
[359553672,1746115832511,-500.0,0.00023282,2]
[359553673,1746115832521,-500.0,0.00023282,2]
[359553674,1746115832531,-500.0,0.00023282,2]
[359553675,1746115832541,-488.05703756,0.00023282,2]
[359553676,1746115832550,-500.0,0.00023282,2]
[359553677,1746115832560,-500.0,0.00023282,2]
[359553678,1746115832570,-500.0,0.00023282,2]
[359553679,1746115832580,-500.0,0.00023282,2]
[359553680,1746115832589,-500.0,0.00023282,2]
[359553681,1746115832599,-500.0,0.00023282,2]
[359553682,1746115832609,-500.0,0.00023282,2]
[359553683,1746115832619,-500.0,0.00023282,2]
[359553684,1746115832629,-500.0,0.00023282,2]
[359553686,1746115832642,-500.0,0.00023282,2]
[359553688,1746115832651,-500.0,0.00023282,2]
[359553690,1746115832661,-500.0,0.00023282,2]
[359553692,1746115832671,-348.80570376,0.00023282,2]
[359553693,1746115832681,-500.0,0.00023282,2]
[359553694,1746115832691,-500.0,0.00023282,2]
[359553695,1746115832898,-500.0,0.00023282,2]
[359553696,1746115832909,-649.86730041,0.00023282,2]
[359553697,1746115832918,-500.0,0.00023282,2]
[359553698,1746115832928,-500.0,0.00023283,2]
[359553699,1746115832937,-5550.67990757,0.00023283,2]
[359553700,1746115832950,-18752.79914196,0.00023283,2]
[359553701,1746115832960,-157.58,0.00023284,2]
[359553702,1746115832969,-23057.23699135,0.00023285,2]
[359553703,1746115832981,-1842.76300865,0.00023285,2]
[359553704,1746115832992,-500.0,0.000233,2]
[359553705,1746115833002,-501.65508662,0.000233,2]
[359553706,1746115833013,-500.0,0.000233,2]
[359553707,1746115833023,-71.4756609,0.000233,2]
[359553708,1746115833035,-80.20109922,0.000233,2]
[359553709,1746115833045,-300.0,0.000233,2]
[359553710,1746115833055,-500.0,0.000233,2]
[359553711,1746115833064,-500.0,0.000233,2]
[359553712,1746115833075,-364.17627,0.00023348,2]
[359553713,1746115833084,-240.008756,0.00023392,2]
[359553714,1746115833094,-152.0,0.000234,2]
[359553715,1746115833104,-309.39832824,0.00023557,2]
[359553716,1746115833113,-500.0,0.000237,2]
[359553717,1746115833123,-500.46298553,0.000237,2]
[359553718,1746115833132,-241.3547795,0.000237,2]
[359553762,1746115838027,-258.6452205,0.000237,2]
[359553764,1746115838038,-500.0,0.000237,2]
[359553766,1746115838048,-500.0,0.000237,2]
[359553768,1746115838058,-500.0,0.000237,2]
[359553770,1746115838068,-501.56201146,0.000237,2]
[359553772,1746115838078,-500.0,0.000237,2]
[359553774,1746115838088,-500.0,0.000237,2]
[359553776,1746115838098,-502.98982907,0.000237,2]
[359553779,1746115838108,-507.49178017,0.000237,2]
[359553782,1746115838118,-500.83280941,0.000237,2]
[359553785,1746115838128,-500.64140692,0.000237,2]
[359553788,1746115838137,-500.0,0.000237,2]
[359553790,1746115838147,-160.55894383,0.000237,2]
[359553792,1746115838156,-503.30892032,0.000237,2]
[359553794,1746115838165,-1138.35839645,0.000239,2]
[359553797,1746115838177,-272.09434084,0.000239,2]
[359553799,1746115838187,-900.0,0.00024,2]
[359553801,1746115838200,-250.0,0.00024215,2]
[359553803,1746115838210,-1000.0,0.00024315,2]
[359553806,1746115838219,-478.47709575,0.00024364,2]
[359553808,1746115838229,-500.0,0.000245,2]
[359553810,1746115838238,-2264.62182872,0.000248,2]
[359553813,1746115838248,-2264.62182872,0.0002489,2]
[359553816,1746115838257,-76566.2977618,0.000249,2]
[359553819,1746115838267,-600.0,0.00024944,2]
[359553821,1746115838276,-160.0,0.00025087,2]
[359553823,1746115838285,-160.0,0.00025087,2]
[359553825,1746115838295,-160.0,0.00025087,2]
[359553827,1746115838304,-420.0,0.00025264,2]
[359553829,1746115838314,-420.0,0.00025266,2]
[359553831,1746115838323,-420.0,0.00025266,2]
[359553833,1746115838333,-1680.0,0.00025382,2]
[359553835,1746115838344,-159.99053663,0.000255,2]
[359553837,1746115838354,-465.67385479,0.00025583,2]
[359553839,1746115838363,-1315.13228344,0.00025678,2]
[359553841,1746115838372,-250.0,0.00026,30]
[359553843,1746115838383,-165.7016555,0.00026169,2]
[359553845,1746115838392,-900.0,0.00026588,2]
[359553847,1746115838402,-313.5174939,0.00027,3]
[359553849,1746115838411,-313.5174939,0.00027,3]
[359553851,1746115838421,-2264.62182872,0.00027097,2]
[359553853,1746115838431,-402.47583889,0.00027397,60]
[359553855,1746115838440,-202.897135,0.00027397,120]
[359553857,1746115838449,-1006.800709,0.00027397,2]
[359553859,1746115838459,-587.0,0.00027418,2]
[359553861,1746115838468,-587.0,0.00027419,2]
[359553863,1746115838477,-2351.0,0.00027673,2]
[359553865,1746115838487,-500.0,0.00027775,2]
[359553867,1746115838496,-500.42441715,0.00027775,2]
[359553869,1746115838506,-500.0,0.00027775,5]
[359553871,1746115838515,-500.0,0.00027775,5]
[359553873,1746115838524,-500.0,0.00027775,5]
[359553875,1746115838534,-150.0,0.000278,2]
[359553877,1746115838543,-463.93799336,0.00027922,5]
[359553879,1746115838553,-500.0,0.00027922,5]
[359553881,1746115838562,-500.0,0.00027922,5]
[359553883,1746115838571,-2264.62182872,0.0002798,2]
[359553885,1746115838581,-76566.2977618,0.0002799,2]
[359553887,1746115838590,-2264.62182872,0.0002799,2]
[359553889,1746115838600,-1836.41307603,0.0002799,2]
[359553891,1746115838609,-28919.83999842,0.00028,2]
[359553893,1746115838618,-250.0,0.00028,30]
[359553895,1746115838628,-160.0,0.00028,3]
[359553897,1746115838639,-1315.13228344,0.00028174,2]
[359553899,1746115838651,-1200.0,0.00028232,5]
[359553901,1746115838660,-151.0,0.00028321,2]
[359553903,1746115838669,-179.89467565,0.00028321,2]
[359553905,1746115838679,-207.4,0.00028321,2]
[359553907,1746115838689,-500.0,0.0002835,5]
[359553909,1746115838699,-6443.35649547,0.0002849,2]
[359553911,1746115838709,-800.0,0.000285,2]
[359553913,1746115838721,-500.0,0.000285,5]
[359553915,1746115838731,-500.0,0.000285,5]
[359553917,1746115838740,-300.0,0.000285,5]
[359553919,1746115838749,-500.0,0.000285,5]
[359553921,1746115838760,-500.0,0.000285,5]
[359553923,1746115838772,-500.0,0.000285,3]
[359553925,1746115838781,-500.0,0.000285,5]
[359553927,1746115838791,-500.0,0.000285,5]
[359553929,1746115838802,-500.0,0.000285,5]
[359553931,1746115838811,-619.34299103,0.000285,5]
[359553933,1746115838821,-500.0,0.000285,5]
[359553934,1746115838831,-500.63328036,0.000285,5]
[359553935,1746115838842,-500.0,0.000285,5]
[359553936,1746115838852,-500.0,0.000285,5]
[359553937,1746115838862,-295.88,0.0002858,3]
[359553938,1746115838872,-887.67,0.0002858,3]
[359553939,1746115838881,-4529.24365744,0.0002858,2]
[359553940,1746115838890,-728.06609056,0.00028588,2]
[359553941,1746115838900,-76566.2977618,0.0002859,2]
[359553942,1746115838909,-2264.62182872,0.0002859,2]
[359553943,1746115838919,-7053.08132431,0.00028599,3]
[359553944,1746115838928,-41763.36276713,0.000286,2]
[359554035,1746115846298,-500.0,0.00023899,2]
[359554037,1746115846308,-375.97500589,0.00023899,2]
[359554039,1746115846317,-500.0,0.00023899,2]
[359554041,1746115846327,-634.47013215,0.00023899,2]
[359554043,1746115846336,-500.0,0.00023899,2]
[359554044,1746115846345,-500.0,0.00023899,2]
[359554045,1746115846354,-220.31865925,0.00023899,2]
[359554046,1746115846363,-368.62639432,0.00023899,2]
[359554047,1746115846383,-500.0,0.00023899,2]
[359554048,1746115846393,-1638.38773088,0.000249,12]
[359554049,1746115846403,-74.59638731,0.00025452,13]
[359554050,1746115846416,-701.39368558,0.00025452,13]
[359554051,1746115846429,-862.39765783,0.00025452,13]
[359554052,1746115846439,-1638.38773072,0.00026003,14]
[359554053,1746115846449,-544.83918145,0.00026555,15]
[359554054,1746115846461,-1093.54854927,0.00026555,15]
[359554055,1746115846471,-978.01780623,0.00027107,16]
[359554089,1746116603210,1549.0,0.00025,30]
[359554092,1746116871672,761.70794489,0.00018,2]
[359554115,1746117032089,-1664.42142843,0.00019205,5]
[359554116,1746117032100,-249.60958333,0.00019904,2]
[359554117,1746117032112,-300.0,0.00019999,2]
[359554119,1746117032123,-300.0,0.00019999,2]
[359554121,1746117032133,-1200.0,0.00019999,2]
[359554123,1746117032143,-300.0,0.00019999,2]
[359554125,1746117032154,-228.43165591,0.0002,7]
[359554127,1746117032163,-11243.02778921,0.0002,2]
[359554129,1746117032175,-6548.94322078,0.0002,2]
[359554130,1746117032196,-34006.03766316,0.0002,2]
[359554137,1746117038105,-500.0,0.00019999,2]
[359554138,1746117038115,-500.0,0.00019999,2]
[359554139,1746117038125,-500.0,0.00019999,2]
[359554140,1746117038134,-500.0,0.00019999,2]
[359554141,1746117038151,-500.0,0.00019999,2]
[359554142,1746117038162,-615.40281593,0.00019999,2]
[359554143,1746117038172,-182.88057038,0.00019999,2]
[359554144,1746117038182,-500.0,0.00019999,2]
[359554145,1746117038192,-10120.4472225,0.0002,2]
[359554146,1746117038201,-266.94622411,0.00021,2]
[359554147,1746117038211,-759.31406487,0.00021,2]
[359554148,1746117038220,-420.0,0.00021777,2]
[359554149,1746117038230,-420.0,0.00021777,2]
[359554150,1746117038239,-1680.0,0.00021881,2]
[359554151,1746117038249,-24900.0,0.00022198,2]
[359554152,1746117038258,-587.0,0.00023712,2]
[359554153,1746117038267,-587.0,0.00023712,2]
[359554154,1746117038276,-594.12909251,0.00023749,2]
[359554155,1746117038285,-500.0,0.00023749,2]
[359554156,1746117038294,-291.28748026,0.00023749,2]
[359554157,1746117038303,-500.0,0.00023749,2]
[359554158,1746117038313,-500.0,0.00023749,2]
[359554159,1746117038322,-531.80835786,0.00023749,2]
[359554160,1746117038331,-308.03847602,0.00023749,2]
[359554161,1746117038340,-500.0,0.0002375,2]
[359554162,1746117038351,-500.0,0.0002375,2]
[359554163,1746117038360,-500.0,0.0002375,2]
[359554164,1746117038370,-500.0,0.0002375,2]
[359554165,1746117038379,-610.71163452,0.0002375,2]
[359554166,1746117038388,-300.0,0.0002375,2]
[359554167,1746117038399,-500.0,0.0002375,2]
[359554168,1746117038408,-500.0,0.0002375,2]
[359554169,1746117038418,-500.0,0.0002375,2]
[359554170,1746117038428,-500.42441715,0.0002375,2]
[359554171,1746117038438,-500.0,0.0002375,2]
[359554172,1746117038448,-500.0,0.0002375,2]
[359554173,1746117038457,-2351.0,0.00023941,2]
[359554174,1746117038467,-250.0,0.0002395,2]
[359554175,1746117038477,-1457.48583099,0.000246,11]
[359554176,1746117038486,-1457.48583074,0.000246,11]
[359554177,1746117038496,-1457.48583074,0.000246,11]
[359554178,1746117038505,-1457.48583074,0.000246,11]
[359554179,1746117038515,-1457.48583074,0.000246,11]
[359554180,1746117038525,-1457.48583074,0.000246,11]
[359554181,1746117038535,-12818.56744619,0.00024993,2]
[359554182,1746117038545,-1056.97042113,0.00025,2]
[359554183,1746117038555,-15000.0,0.00025,2]
[359554184,1746117038564,-2603.45296275,0.00025,2]
[359554185,1746117038574,-206.56531629,0.00025,2]
[359554186,1746117038584,-10364.0,0.00025,2]
[359554187,1746117038593,-840.78436779,0.00025,2]
[359554188,1746117038603,-47509.69492776,0.00025,2]
[359554189,1746117038613,-60511.24985792,0.00025,2]
[359554190,1746117038623,-150.0,0.00025,3]
[359554191,1746117038632,-110201.910168,0.00025,2]
[359554192,1746117038642,-1457.48583074,0.00025038,12]
[359554193,1746117038651,-600.0,0.00025394,2]
[359554194,1746117038660,-900.0,0.00025469,3]
[359554195,1746117038670,-320.0,0.00025469,3]
[359554196,1746117038679,-1457.48583074,0.00025728,13]
[359554197,1746117038688,-823.0,0.0002582,2]
[359554198,1746117038698,-407.0,0.0002582,2]
[359554199,1746117038706,-465.67385479,0.00025985,2]
[359554200,1746117038716,-1631.0,0.00026194,2]
[359554201,1746117038725,-1457.48583074,0.00026417,15]
[359554202,1746117038735,-301.8777938,0.00026647,2]
[359554203,1746117038745,-1000.0,0.000269,2]
[359554204,1746117038754,-302.2256412,0.00026913,2]
[359554205,1746117038764,-1836.41307603,0.0002699,2]
[359554206,1746117038773,-182.07995741,0.00027,3]
[359554207,1746117038783,-160.0,0.00027,3]
[359554208,1746117038792,-313.5174939,0.00027,3]
[359554209,1746117038801,-313.5174939,0.00027,3]
[359554210,1746117038810,-250.0,0.00027007,2]
[359554211,1746117038820,-900.0,0.00027038,2]
[359554212,1746117038829,-1457.48583074,0.00027107,16]
[359554213,1746117038839,-202.897135,0.00027397,120]
[359554214,1746117038848,-964.613084,0.00027397,2]
[359554215,1746117038859,-188.2854801,0.00027472,2]
[359554216,1746117038868,-1542.5066517,0.000275,2]
[359554217,1746117038878,-1457.48583074,0.00027797,17]
[359554218,1746117038887,-151.0,0.000278,14]
[359554219,1746117038897,-250.0,0.000279,30]
[359554220,1746117038907,-421.4777418,0.00028,3]
[359554221,1746117038916,-160.0,0.00028,3]
[359554222,1746117038925,-160.0,0.00028,3]
[359554223,1746117038935,-280.9085778,0.00028008,2]
[359554224,1746117038945,-151.0,0.000281,10]
[359554225,1746117038954,-1152.0,0.00028115,2]
[359554226,1746117038964,-7053.08132431,0.000282,3]
[359554227,1746117038974,-8626.00504105,0.000282,2]
[359554228,1746117038993,-39805.26495425,0.000282,2]
[359554229,1746117039005,-7475.99,0.000282,2]
[359554230,1746117039016,-17992.39969994,0.000282,2]
[359554265,1746117040599,-8516.53878686,0.000282,2]
[359554285,1746117046325,-1819.95636234,0.000282,2]
[359554286,1746117046374,-22329.78674766,0.000282,2]
[359554287,1746117046487,-6207.81018644,0.000282,2]
[359554364,1746118232229,-215.5062765,0.00018944,2]
[359554366,1746118232238,-165.7016555,0.00019098,2]
[359554368,1746118232248,-300.0,0.00019353,2]
[359554370,1746118232258,-1200.0,0.00019353,2]
[359554373,1746118232268,-300.0,0.00019353,2]
[359554375,1746118232277,-8712.2583697,0.00019354,2]
[359554377,1746118232287,-485.56257049,0.00019993,2]
[359554379,1746118232296,-500.0,0.00019993,2]
[359554381,1746118232305,-500.0,0.00019993,2]
[359554383,1746118232315,-500.0,0.00019993,2]
[359554385,1746118232326,-500.0,0.00019993,2]
[359554387,1746118232338,-500.0,0.00019993,2]
[359554388,1746118232348,-500.0,0.00019993,2]
[359554389,1746118232358,-500.0,0.00019993,2]
[359554390,1746118232367,-394.74976342,0.00019993,2]
[359554391,1746118232377,-466.534856,0.00019993,2]
[359554392,1746118232386,-500.0,0.00019993,2]
[359554393,1746118232396,-500.0,0.00019993,2]
[359554394,1746118232406,-500.0,0.00019993,2]
[359554395,1746118232416,-500.0,0.00019993,2]
[359554397,1746118232426,-500.0,0.00019993,2]
[359554398,1746118232436,-500.0,0.00019993,2]
[359554399,1746118232446,-372.5,0.00019993,2]
[359554400,1746118232456,-248.96727445,0.00019993,2]
[359554401,1746118232466,-500.0,0.00019993,2]
[359554402,1746118232476,-500.0,0.00019993,2]
[359554403,1746118232486,-500.0,0.00019993,2]
[359554404,1746118232496,-500.0,0.00019993,2]
[359554405,1746118232506,-541.20626301,0.00019993,2]
[359554406,1746118232516,-500.0,0.00019993,2]
[359554407,1746118232526,-500.0,0.00019993,2]
[359554408,1746118232536,-461.54028159,0.00019993,2]
[359554409,1746118232546,-500.0,0.00019993,2]
[359554410,1746118232556,-31111.81760252,0.00019993,2]
[359554411,1746118232568,-1150.74074801,0.0002041,2]
[359554412,1746118232578,-302.2256412,0.0002051,2]
[359554413,1746118232587,-188.2854801,0.00020916,2]
[359554414,1746118232599,-420.0,0.00021088,2]
[359554415,1746118232610,-431.0,0.0002119,2]
[359554416,1746118232619,-500.0,0.00021673,2]
[359554417,1746118232629,-19695.27564907,0.00021674,5]
[359554418,1746118232641,-17551.71924785,0.00021674,5]
[359554419,1746118232737,-203.90123618,0.00021673,2]
[359554420,1746118232746,-500.0,0.00021673,2]
[359554421,1746118232757,-222.2658505,0.00021673,2]
[359554422,1746118232767,-5069.96678023,0.00021674,5]
[359554433,1746118238282,-415.62693321,0.00021673,2]
[359554434,1746118238293,-223.18629838,0.00021674,5]
[359554435,1746118238306,-680.5889704,0.00021674,5]
[359554438,1746118238390,-7712.77947407,0.00021674,5]
[359554439,1746118238401,-415.89036476,0.00021918,2]
[359554441,1746118238412,-587.0,0.00022977,2]
[359554442,1746118238422,-1150.74074801,0.00023042,2]
[359554443,1746118238432,-500.0,0.0002332,2]
[359554444,1746118238441,-515.25123319,0.0002332,2]
[359554445,1746118238451,-500.0,0.0002332,2]
[359554446,1746118238460,-500.0,0.0002332,2]
[359554447,1746118238469,-500.0,0.0002332,2]
[359554448,1746118238479,-500.0,0.0002332,2]
[359554449,1746118238489,-500.0,0.0002332,2]
[359554450,1746118238499,-300.0,0.0002332,2]
[359554451,1746118238509,-500.0,0.0002332,2]
[359554452,1746118238518,-320.0,0.0002332,2]
[359554453,1746118238528,-463.93799336,0.0002346,2]
[359554454,1746118238538,-500.0,0.0002346,2]
[359554455,1746118238547,-500.0,0.0002346,2]
[359554456,1746118238557,-500.0,0.0002346,2]
[359554457,1746118238567,-500.0,0.00023833,2]
[359554458,1746118238577,-1165.98866465,0.000245,11]
[359554459,1746118238586,-1165.98866459,0.000245,11]
[359554460,1746118238598,-1165.98866459,0.000245,11]
[359554461,1746118238608,-1165.98866459,0.000245,11]
[359554462,1746118238628,-1165.98866459,0.000245,11]
[359554463,1746118238639,-1165.98866459,0.000245,11]
[359554464,1746118238650,-1590.89683467,0.000248,2]
[359554465,1746118238661,-1245.79,0.0002489,3]
[359554466,1746118238672,-622.9,0.0002489,3]
[359554467,1746118238682,-155.72,0.0002489,3]
[359554468,1746118238693,-467.21,0.0002489,3]
[359554469,1746118238704,-77735.3136039,0.000249,2]
[359554470,1746118238715,-6534.33987154,0.00024936,2]
[359554471,1746118238728,-600.0,0.00024964,2]
[359554472,1746118238740,-77735.3136039,0.0002499,2]
[359554473,1746118238752,-1590.89683467,0.0002499,2]
[359554474,1746118238763,-311.45,0.0002499,3]
[359554475,1746118238774,-28919.83999842,0.00025,2]
[359554476,1746118238785,-250.0,0.00025032,2]
[359554477,1746118238796,-823.0,0.00025036,2]
[359554478,1746118238807,-1165.98866459,0.00025038,12]
[359554479,1746118238817,-1150.74074801,0.00025674,2]
[359554480,1746118238829,-6534.3398715,0.00025727,2]
[359554481,1746118239071,-1165.98866459,0.00025728,13]
[359554482,1746118239082,-250.0,0.000259,30]
[359554483,1746118239092,-150.0,0.000261,2]
[359554484,1746118239102,-2491.58,0.0002626,3]
[359554485,1746118239112,-1245.8,0.0002626,3]
[359554486,1746118239121,-311.44,0.0002626,3]
[359554487,1746118239132,-622.9,0.0002636,3]
[359554488,1746118239143,-1165.98866459,0.00026417,15]
[359554489,1746118239155,-6534.3398715,0.00026518,2]
[359554490,1746118239170,-900.0,0.00026608,2]
[359554491,1746118239181,-313.5174939,0.00027,3]
[359554492,1746118239191,-313.5174939,0.00027,3]
[359554493,1746118239201,-182.07995741,0.00027,3]
[359554494,1746118239211,-1165.98866459,0.00027107,16]
[359554495,1746118239221,-1152.0,0.0002728,2]
[359554496,1746118239232,-6534.3398715,0.00027309,2]
[359554497,1746118239242,-402.47583889,0.00027397,60]
[359554498,1746118239252,-202.897135,0.00027397,120]
[359554499,1746118239262,-1023.105529,0.00027397,2]
[359554500,1746118239273,-280.9085778,0.00027662,2]
[359554501,1746118239283,-1165.98866459,0.00027797,17]
[359554502,1746118239293,-280.9085778,0.00027805,2]
[359554503,1746118239303,-250.0,0.000279,30]
[359554504,1746118239313,-151.0,0.00028,2]
[359554505,1746118239324,-727.30121309,0.00028,10]
[359554506,1746118239337,-421.4777418,0.00028,3]
[359554507,1746118239347,-160.0,0.00028,3]
[359554508,1746118239358,-1000.0,0.00028,28]
[359554509,1746118239367,-151.0,0.0002804,7]
[359554510,1746118239378,-151.0,0.0002804,7]
[359554511,1746118239388,-151.0,0.0002804,7]
[359554512,1746118239398,-38146.88917618,0.0002804,2]
[359554529,1746118240806,-1151.38227162,0.0002804,2]
[359554530,1746118240820,-383.112,0.0002804,2]
[359554557,1746118243528,-977.66966865,0.000279,2]
[359554559,1746118246602,-313.5174939,0.00027,3]
[359554560,1746118246612,-1740.4794596,0.000279,2]
[359554562,1746118482976,16678.54823621,0.00025,30]
[359554563,1746118505868,6050.91,0.00025,30]
[359554598,1746119261694,-4300.0,0.00027,120]
[359554610,1746119432363,-164.68320876,0.00019023,7]
[359554611,1746119432375,-453.0139531,0.00019123,2]
[359554613,1746119432386,-160.0,0.00026354,2]
[359554614,1746119432398,-499.30941209,0.00026355,2]
[359554617,1746119432412,-133.43238251,0.00026355,2]
[359554619,1746119432423,-301.8777938,0.00026417,2]
[359554621,1746119432434,-822.99170723,0.000269,16]
[359554623,1746119432445,-1836.41307603,0.0002699,2]
[359554625,1746119432456,-71.98532736,0.00027,120]
[359554626,1746119432467,-313.5174939,0.00027,3]
[359554629,1746119432479,-300.0,0.00027177,2]
[359554631,1746119432490,-362.0172928,0.00027178,2]
[359554632,1746119432502,-362.0172928,0.00027178,2]
[359554633,1746119432513,-362.0172928,0.00027178,2]
[359554634,1746119432524,-362.0172928,0.00027178,2]
[359554635,1746119432536,-362.0172928,0.00027178,2]
[359554636,1746119432547,-362.0172928,0.00027178,2]
[359554637,1746119432558,-362.0172928,0.00027178,2]
[359554638,1746119432570,-151.0,0.0002719,2]
[359554639,1746119432582,-207.4,0.0002719,2]
[359554640,1746119432592,-179.89467565,0.0002719,2]
[359554641,1746119432603,-151.4394318,0.00027287,2]
[359554642,1746119432614,-822.99170716,0.00027383,17]
[359554643,1746119432626,-402.47583889,0.00027397,60]
[359554644,1746119432637,-202.897135,0.00027397,120]
[359554645,1746119432649,-1023.105529,0.00027397,2]
[359554646,1746119432661,-280.9085778,0.00027459,2]
[359554647,1746119432673,-14606.73556162,0.00027621,2]
[359554648,1746119432800,-1165.24582191,0.00027621,2]
[359554649,1746119432838,-1042.62680567,0.00027621,2]
[359554650,1746119432848,-172.51398493,0.0002778,2]
[359554651,1746119432859,-2660.08486004,0.0002779,2]
[359554652,1746119432869,-250.0,0.000278,2]
[359554653,1746119432880,-2660.08486002,0.00027843,2]
[359554654,1746119432890,-822.99170716,0.00027866,17]
[359554655,1746119432900,-500.0,0.00027873,5]
[359554656,1746119432910,-480.21252643,0.00027873,5]
[359554664,1746119440873,-500.0,0.0002762,2]
[359554665,1746119440883,-390.65476572,0.0002762,2]
[359554682,1746119443481,-109.34523428,0.0002762,2]
[359554684,1746119443491,-282.35625145,0.0002762,2]
[359554686,1746119443500,-108.29851427,0.0002762,2]
[359554739,1746119446703,-391.70148573,0.0002762,2]
[359554740,1746119446721,-500.0,0.0002762,2]
[359554741,1746119446731,-79.73585187,0.0002762,2]
[359554748,1746120009862,1278.0,0.000181,2]
[359554753,1746120519859,3602.46188597,0.0002,20]
[359554781,1746120632586,-192.39424699,0.0002,2]
[359554782,1746120632597,-330.00736783,0.000234,2]
[359554783,1746120632610,-351.63552655,0.000234,2]
[359554784,1746120632645,-5089.27933428,0.000234,2]
[359554785,1746120632655,-165.1397575,0.00023542,5]
[359554786,1746120632666,-165.1397575,0.0002427,5]
[359554788,1746120632676,-874.6101783,0.0002457,2]